[Event "WJCC U20 Open 2019"]
[Site "New Delhi"]
[Date "2019.10.18"]
[Round "5.14"]
[White "Rahul Srivatshav P"]
[Black "Aronyak Ghosh"]
[Result "1/2-1/2"]
[ECO "A30"]
[WhiteElo "2460"]
[BlackElo "2380"]
[Annotator "ChessBase"]
[PlyCount "67"]
[EventDate "2019.10.15"]
[EventType "swiss"]
[EventCountry "IND"]
[SourceTitle "playchess.com"]
[Source "ChessBase"]
[SourceQuality "1"]
[TimeControl "40/5400+30:1800+30"]

1. c4 {[%emt 0:00:00]} c5 {[%emt 0:01:46]} 2. b3 {[%emt 0:00:00]} Nc6 {[%emt 0:03:13]} 3. Nf3 {[%emt 0:00:00]} e5 {[%emt 0:03:56]} 4. Bb2 {[%emt 0:00:51]} d6 {[%emt 0:00:33]} 5. Nc3 {[%emt 0:00:13]} g6 {[%emt 0:00:20]} 6. g3 {[%emt 0:00:03]} Bg7 {[%emt 0:00:37]} 7. d3 {[%emt 0:00:05]} Nge7 {[%emt 0:02:01]} 8. Bg2 {[%emt 0:00:06]} h6 {[%emt 0:03:02]} 9. Nd2 {[%emt 0:03:03]} Be6 {[%emt 0:02:46]} 10. a3 {[%emt 0:01:29]} d5 {[%emt 0:03:33]} 11. cxd5 {[%emt 0:00:05]} Nxd5 {[%emt 0:00:05]} 12. Rc1 {[%emt 0:00:06]} Rc8 {[%emt 0:05:37]} 13. O-O {[%emt 0:01:40]} Nde7 {[%emt 0:12:57]} 14. b4 {[%emt 0:08:41]} cxb4 {[%emt 0:00:29]} 15. axb4 {[%emt 0:00:04]} Nxb4 {[%emt 0:04:37]} 16. Qa4+ {[%emt 0:18:05]} Nbc6 {[%emt 0:02:08]} 17. Nb5 {[%emt 0:00:24]} O-O {[%emt 0:03:39]} 18. Nxa7 {[%emt 0:01:05]} Nxa7 {[%emt 0:02:46]} 19. Qxa7 {[%emt 0:00:24]} Ra8 {[%emt 0:00:05]} 20. Qc5 {[%emt 0:06:02]} Ra2 {[%emt 0:00:39]} 21. Qb5 {[%emt 0:15:13]} Qd7 {[%emt 0:04:08]} 22. Qxd7 {[%emt 0:04:01]} Bxd7 {[%emt 0:00:01]} 23. Rb1 {[%emt 0:08:14]} Bc6 {[%emt 0:03:15]} 24. Nc4 {[%emt 0:04:46]} b5 {[%emt 0:05:34]} 25. Nxe5 {[%emt 0:04:12]} Bxg2 {[%emt 0:00:28]} 26. Kxg2 {[%emt 0:00:05]} Rc8 {[%emt 0:00:17]} 27. d4 {[%emt 0:05:03]} Rc2 {[%emt 0:00:29]} 28. Ba1 {[%emt 0:04:24]} Rxe2 {[%emt 0:00:36]} 29. Rxb5 {[%emt 0:01:44]} Nf5 {[%emt 0:00:43]} 30. Kh3 {[%emt 0:00:25]} Rxf2 {[%emt 0:05:26]} 31. Rxf2 {[%emt 0:00:04]} Rxf2 {[%emt 0:00:02]} 32. Rb8+ {[%emt 0:00:22]} Kh7 {[%emt 0:00:07]} 33. Nxf7 {[%emt 0:01:01]} Nxd4 {[%emt 0:02:58]} 34. Bxd4 {[%emt 0:00:18]} 1/2-1/2

[Event "WJCC U20 Open 2019"]
[Site "New Delhi"]
[Date "2019.10.18"]
[Round "5.15"]
[White "Batsuren, Dambasuren"]
[Black "Audi Ameya"]
[Result "0-1"]
[ECO "E61"]
[WhiteElo "2454"]
[BlackElo "2336"]
[Annotator "RC"]
[PlyCount "88"]
[EventDate "2019.10.15"]
[EventType "swiss"]
[EventCountry "IND"]
[SourceTitle "playchess.com"]
[Source "ChessBase"]
[SourceQuality "1"]
[TimeControl "40/5400+30:1800+30"]

1. d4 {[%emt 0:00:00]} Nf6 {[%emt 0:00:00]} 2. c4 {[%emt 0:00:00]} g6 {[%emt 0:00:00]} 3. Nc3 {[%emt 0:00:00]} Bg7 {[%emt 0:00:00]} 4. Nf3 {[%emt 0:00:00]} O-O {[%emt 0:00:00]} 5. g3 {[%emt 0:00:00]} c5 {[%emt 0:00:06]} 6. d5 {[%emt 0:00:03]} d6 {[%emt 0:00:15]} 7. Bg2 {[%emt 0:00:06]} e6 {[%emt 0:00:04]} 8. O-O {[%emt 0:00:06]} exd5 {[%emt 0:00:04]} 9. cxd5 {[%emt 0:00:05]} Re8 {[%emt 0:00:07]} 10. Nd2 {[%emt 0:00:05]} Nbd7 {[%emt 0:00:16]} 11. h3 {[%emt 0:00:12]} a6 {[%emt 0:03:11]} 12. a4 {[%emt 0:00:07]} Rb8 {[%emt 0:06:31]} 13. Nc4 {[%emt 0:00:16]} Ne5 {[%emt 0:00:04]} 14. Na3 {[%emt 0:00:07]} Nh5 {[%emt 0:00:20]} 15. e4 {[%emt 0:00:09]} Bd7 {[%emt 0:10:12]} 16. f4 {[%emt 0:00:15]} Nxg3 {[%emt 0:02:02]} 17. fxe5 {[%emt 0:00:07]} Bxe5 {[%emt 0:00:03]} 18. Rf2 {[%emt 0:03:40]} b5 {[%emt 0:02:24]} 19. axb5 {[%emt 0:05:50]} axb5 {[%emt 0:00:02]} 20. Nc2 {[%emt 0:00:24]} Qh4 {[%emt 0:07:08]} 21. Qf3 {[%emt 0:09:31]} Re7 {[%emt 0:03:40]} 22. Ra7 {[%emt 0:15:22]} b4 {[%emt 0:05:49]} 23. Nd1 {[%emt 0:03:48]} Rbe8 {[%emt 0:08:51]} 24. Rxd7 {[%emt 0:14:59]} Rxd7 {[%emt 0:00:09]} 25. Qd3 {[%emt 0:00:15]} Rde7 {[%emt 0:06:44]} 26. Bd2 {[%emt 0:04:50]} b3 {[%emt 0:08:09]} 27. Qxb3 {[%emt 0:09:12]} Nxe4 {[%emt 0:00:03]} 28. Bxe4 {[%emt 0:00:06]} Qxe4 {[%emt 0:00:04]} 29. Nde3 {[%emt 0:00:07]} Bg3 {[%emt 0:08:14]} 30. Rf1 {[%emt 0:03:11]} Qh4 {[%emt 0:01:13]} 31. Kg2 {[%emt 0:03:12]} Bf4 {[%emt 0:00:43]} 32. Rf3 {[%emt 0:01:09]} Qg5+ {[%emt 0:02:27]} 33. Kf1 {[%emt 0:01:01]} Bh2 {[%emt 0:04:06]} 34. Ne1 {[%emt 0:08:53]} Qg1+ {[%emt 0:00:16]} 35. Ke2 {[%emt 0:00:06]} f5 {[%emt 0:00:03]} 36. Rf1 {[%emt 0:02:51]} Qg5 {[%emt 0:08:10]} 37. Nf3 {[%emt 0:01:34]} Qh5 {[%emt 0:00:03]} 38. Kd1 {[%emt 0:00:57]} Bf4 {[%emt 0:00:35]} 39. Nc4 {[%emt 0:00:44]} Qxh3 {[%emt 0:00:15]} 40. Bxf4 {[%emt 0:04:05]} Qxf1+ {[%emt 0:00:17]} 41. Kc2 {[%emt 0:30:05]} Re4 {[%emt 0:36:57]} 42. Ncd2 {[%emt 0:01:02]} c4 {[%emt 0:00:06]} 43. Qb5 {[%emt 0:06:12]} Qd3+ {[%emt 0:00:07]} 44. Kd1 {[%emt 0:00:05]} Ra8 {[%emt 0:00:07]} 0-1

[Event "WJCC U20 Open 2019"]
[Site "New Delhi"]
[Date "2019.10.18"]
[Round "5.17"]
[White "Neelash Saha"]
[Black "Murzin, Volodar"]
[Result "0-1"]
[ECO "B51"]
[WhiteElo "2334"]
[BlackElo "2433"]
[Annotator "NA"]
[PlyCount "138"]
[EventDate "2019.10.15"]
[EventType "swiss"]
[EventCountry "IND"]
[SourceTitle "playchess.com"]
[Source "ChessBase"]
[SourceQuality "1"]
[TimeControl "40/5400+30:1800+30"]

1. e4 {[%emt 0:00:00]} c5 {[%emt 0:05:17]} 2. Nf3 {[%emt 0:00:00]} d6 {[%emt 0:00:06]} 3. Bb5+ {[%emt 0:00:00]} Nd7 {[%emt 0:01:59]} 4. O-O {[%emt 0:00:05]} a6 {[%emt 0:02:17]} 5. Bd3 {[%emt 0:00:06]} Ngf6 {[%emt 0:00:21]} 6. Re1 {[%emt 0:00:16]} e6 {[%emt 0:06:35]} 7. c3 {[%emt 0:01:31]} Be7 {[%emt 0:01:26]} 8. Bc2 {[%emt 0:01:57]} b5 {[%emt 0:01:48]} 9. d4 {[%emt 0:01:00]} Bb7 {[%emt 0:00:18]} 10. Nbd2 {[%emt 0:08:03]} Qc7 $11 {[%emt 0:01:07]} 11. Nf1 {[%emt 0:03:34]} Rc8 {[%emt 0:02:35]} 12. Bd3 {[%emt 0:01:40]} O-O {[%emt 0:00:28]} 13. Ng3 {[%emt 0:01:37]} Rfe8 {[%emt 0:05:00]} 14. h3 {[%emt 0:04:28]} b4 {[%emt 0:11:38]} 15. Bd2 {[%emt 0:08:16]} a5 {[%emt 0:01:52]} 16. Rc1 {[%emt 0:00:30]} Qb8 {[%emt 0:02:18]} 17. Qe2 {[%emt 0:04:12]} cxd4 {[%emt 0:00:35]} 18. cxd4 {[%emt 0:00:06]} Rxc1 {[%emt 0:00:06]} 19. Bxc1 {[%emt 0:01:42]} Rc8 {[%emt 0:00:20]} 20. Nh2 {[%emt 0:07:21]} Qc7 {[%emt 0:10:34]} 21. Bg5 {[%emt 0:08:03]} Qd8 {[%emt 0:01:23]} 22. Rd1 {[%emt 0:06:46]} Nh5 {[%emt 0:14:39]} 23. Bxe7 {[%emt 0:07:44]} Nxg3 {[%emt 0:00:22]} 24. Qg4 {[%emt 0:00:50]} Ne2+ {[%emt 0:00:51]} 25. Qxe2 {[%emt 0:02:14]} Qxe7 {[%emt 0:00:06]} 26. Nf3 {[%emt 0:01:03]} Nf8 {[%emt 0:07:44]} 27. Qd2 {[%emt 0:04:43]} Qd8 {[%emt 0:01:11]} 28. Rc1 {[%emt 0:00:16]} Rxc1+ {[%emt 0:04:22]} 29. Qxc1 {[%emt 0:00:07]} h6 {[%emt 0:00:55]} 30. Qc2 {[%emt 0:01:46]} Ng6 {[%emt 0:01:00]} 31. g3 {[%emt 0:03:40]} Ne7 {[%emt 0:00:09]} 32. Qe2 {[%emt 0:02:33]} Qc8 {[%emt 0:02:12]} 33. Qc2 {[%emt 0:00:17]} Qxc2 {[%emt 0:02:55]} 34. Bxc2 {[%emt 0:00:06]} Ba6 {[%emt 0:03:23]} 35. Kg2 {[%emt 0:01:58]} Kf8 {[%emt 0:02:08]} 36. Ba4 {[%emt 0:01:48]} d5 {[%emt 0:00:22]} 37. exd5 {[%emt 0:04:28]} Nxd5 {[%emt 0:00:41]} 38. Ne5 {[%emt 0:00:51]} Nb6 {[%emt 0:01:05]} 39. Bc2 {[%emt 0:01:51]} f6 {[%emt 0:02:26]} 40. Ng4 {[%emt 0:02:59]} Nc4 {[%emt 0:01:15]} 41. b3 {[%emt 0:35:28]} Na3 {[%emt 0:30:37]} 42. Ne3 {[%emt 0:00:08]} Nb5 {[%emt 0:00:00]} 43. Bd3 {[%emt 0:00:00]} Bb7+ {[%emt 0:00:00]} 44. Kf1 {[%emt 0:00:00]} Nxd4 {[%emt 0:00:00]} 45. Ke1 {[%emt 0:00:00]} Ke7 {[%emt 0:00:00]} 46. Kd2 {[%emt 0:00:00]} Bd5 {[%emt 0:00:00]} 47. f4 {[%emt 0:00:00]} Kd6 {[%emt 0:00:00]} 48. Kc1 {[%emt 0:00:00]} Kc5 {[%emt 0:00:00]} 49. h4 {[%emt 0:00:00]} Nc6 {[%emt 0:00:00]} 50. Kd2 {[%emt 0:00:00]} Ne7 {[%emt 0:00:00]} 51. g4 {[%emt 0:00:00]} g5 {[%emt 0:00:00]} 52. fxg5 {[%emt 0:00:00]} fxg5 {[%emt 0:00:00]} 53. hxg5 {[%emt 0:00:00]} hxg5 {[%emt 0:00:00]} 54. Nd1 {[%emt 0:00:00]} Kd4 {[%emt 0:00:00]} 55. Ne3 {[%emt 0:00:00]} Ng8 {[%emt 0:00:00]} 56. Nc2+ {[%emt 0:00:00]} Ke5 {[%emt 0:00:00]} 57. Ne3 {[%emt 0:00:00]} Nf6 {[%emt 0:00:00]} 58. Bc4 {[%emt 0:00:00]} Kf4 {[%emt 0:01:29]} 59. Bxd5 {[%emt 0:00:00]} exd5 {[%emt 0:00:07]} 60. Kd3 {[%emt 0:00:00]} Ke5 {[%emt 0:00:15]} 61. Nf5 {[%emt 0:00:00]} Nxg4 {[%emt 0:00:17]} 62. Nd4 {[%emt 0:00:00]} Nf2+ {[%emt 0:02:15]} 63. Ke3 {[%emt 0:00:00]} Nd1+ {[%emt 0:00:13]} 64. Kd3 {[%emt 0:00:00]} g4 {[%emt 0:00:21]} 65. Nc6+ {[%emt 0:00:00]} Kf4 {[%emt 0:00:12]} 66. Ke2 {[%emt 0:00:00]} g3 {[%emt 0:00:14]} 67. Kf1 {[%emt 0:00:00]} Ne3+ 68. Ke2 {[%emt 0:00:00]} Ke4 {[%emt 0:00:39]} 69. Nxa5 {[%emt 0:00:00]} d4 {[%emt 0:00:04] Kd3+} 0-1

[Event "WJCC U20 Open 2019"]
[Site "New Delhi"]
[Date "2019.10.18"]
[Round "5.18"]
[White "Saurabh Anand"]
[Black "Davtyan, Artur"]
[Result "1/2-1/2"]
[ECO "C45"]
[WhiteElo "2236"]
[BlackElo "2418"]
[Annotator "NA RC"]
[PlyCount "60"]
[EventDate "2019.10.15"]
[EventType "swiss"]
[EventCountry "IND"]
[SourceTitle "playchess.com"]
[Source "ChessBase"]
[SourceQuality "1"]
[TimeControl "40/5400+30:1800+30"]

1. e4 {[%emt 0:00:00]} e5 {[%emt 0:00:00]} 2. Nf3 {[%emt 0:00:09]} Nc6 {[%emt 0:01:14]} 3. d4 {[%emt 0:00:58]} exd4 {[%emt 0:00:05]} 4. Nxd4 {[%emt 0:00:08]} Bc5 5. Nb3 {[%emt 0:00:25]} Bb6 {[%emt 0:00:41]} 6. Nc3 {[%emt 0:00:19]} Nf6 {[%emt 0:00:06]} 7. Qe2 {[%emt 0:00:27]} a5 {[%emt 0:00:54]} 8. a4 {[%emt 0:00:51]} O-O {[%emt 0:00:39]} 9. Bg5 {[%emt 0:00:16]} Nd4 {[%emt 0:01:18]} 10. Qd2 {[%emt 0:01:23]} Nxb3 {[%emt 0:13:03]} 11. cxb3 {[%emt 0:02:04]} h6 {[%emt 0:00:29]} 12. Be3 {[%emt 0:03:18]} Bxe3 {[%emt 0:02:05]} 13. Qxe3 {[%emt 0:00:23]} c6 {[%emt 0:00:04]} 14. O-O-O {[%emt 0:05:52]} d5 {[%emt 0:00:59]} 15. exd5 {[%emt 0:02:04]} cxd5 {[%emt 0:05:21]} 16. Qd4 {[%emt 0:02:58]} Be6 {[%emt 0:02:42]} 17. Kb1 {[%emt 0:03:55]} Rc8 {[%emt 0:01:08]} 18. Bb5 {[%emt 0:08:29]} Qd6 {[%emt 0:00:19]} 19. f3 {[%emt 0:00:48]} Rc7 {[%emt 0:02:16]} 20. g4 {[%emt 0:05:41]} Rfc8 {[%emt 0:00:24]} 21. Ka2 {[%emt 0:02:35]} Qc5 {[%emt 0:23:04]} 22. h4 {[%emt 0:05:33]} Rd8 {[%emt 0:01:31]} 23. Rh2 {[%emt 0:04:41]} Qxd4 {[%emt 0:02:22]} 24. Rxd4 {[%emt 0:00:11]} Kf8 {[%emt 0:00:38]} 25. Rhd2 {[%emt 0:02:24]} Rc5 {[%emt 0:01:17]} 26. Bc4 {[%emt 0:04:33]} Rd7 {[%emt 0:01:28]} 27. Bb5 {[%emt 0:03:33]} Rd8 {[%emt 0:00:39]} 28. Bc4 {[%emt 0:02:42]} Rd7 {[%emt 0:01:01]} 29. Bb5 {[%emt 0:01:00]} Rd8 {[%emt 0:00:05]} 30. Bc4 {[%emt 0:06:05]} Rd7 {[%emt 0:05:32]} 1/2-1/2

[Event "WJCC U20 Open 2019"]
[Site "New Delhi"]
[Date "2019.10.18"]
[Round "5.22"]
[White "Parkhov, Yair"]
[Black "Kuybokarov, Temur"]
[Result "1/2-1/2"]
[ECO "D20"]
[WhiteElo "2350"]
[BlackElo "2501"]
[Annotator "ChessBase"]
[PlyCount "62"]
[EventDate "2019.10.15"]
[EventType "swiss"]
[EventCountry "IND"]
[SourceTitle "playchess.com"]
[Source "ChessBase"]
[SourceQuality "1"]
[TimeControl "40/5400+30:1800+30"]

1. d4 {[%emt 0:00:00]} d5 {[%emt 0:00:00]} 2. c4 {[%emt 0:00:00]} dxc4 {[%emt 0:00:00]} 3. e4 {[%emt 0:00:00]} e5 {[%emt 0:00:34]} 4. Nf3 {[%emt 0:00:07]} exd4 {[%emt 0:00:16]} 5. Bxc4 {[%emt 0:00:09]} Bb4+ {[%emt 0:00:13]} 6. Bd2 {[%emt 0:05:08]} Bxd2+ {[%emt 0:00:35]} 7. Nbxd2 {[%emt 0:06:30]} Qf6 {[%emt 0:00:18]} 8. Nb3 {[%emt 0:06:24]} Nc6 {[%emt 0:06:58]} 9. Nbxd4 {[%emt 0:03:21]} Nge7 {[%emt 0:02:33]} 10. Nb5 {[%emt 0:14:27]} Qf4 {[%emt 0:06:23]} 11. O-O {[%emt 0:02:25]} O-O {[%emt 0:03:30]} 12. Qc1 {[%emt 0:13:10]} Qxe4 {[%emt 0:07:39]} 13. Re1 {[%emt 0:00:40]} Qg6 {[%emt 0:09:18]} 14. Nxc7 {[%emt 0:01:20]} Rb8 {[%emt 0:07:19]} 15. Nd5 {[%emt 0:06:30]} Nxd5 {[%emt 0:13:28]} 16. Bxd5 {[%emt 0:00:08]} Bh3 {[%emt 0:03:43]} 17. Ne5 {[%emt 0:10:33]} Nxe5 {[%emt 0:00:22]} 18. Rxe5 {[%emt 0:00:10]} Bd7 {[%emt 0:08:48]} 19. Qe3 {[%emt 0:01:24]} b6 {[%emt 0:03:02]} 20. Re1 {[%emt 0:00:50]} Bc6 {[%emt 0:01:27]} 21. h3 {[%emt 0:05:03]} h6 {[%emt 0:02:51]} 22. Qe4 {[%emt 0:01:10]} Bxd5 {[%emt 0:01:30]} 23. Qxg6 {[%emt 0:00:56]} fxg6 {[%emt 0:00:06]} 24. Rxd5 {[%emt 0:00:05]} Rfd8 {[%emt 0:01:10]} 25. Red1 {[%emt 0:00:28]} Rxd5 {[%emt 0:00:17]} 26. Rxd5 {[%emt 0:00:06]} Rc8 {[%emt 0:00:22]} 27. Rd7 {[%emt 0:00:28]} Rc2 {[%emt 0:00:55]} 28. Rxa7 {[%emt 0:00:08]} Rxb2 {[%emt 0:00:06]} 29. a4 {[%emt 0:00:08]} g5 {[%emt 0:00:18]} 30. f3 {[%emt 0:00:10]} Kh7 {[%emt 0:00:24]} 31. a5 {[%emt 0:00:09]} bxa5 {[%emt 0:00:55]} 1/2-1/2

[Event "WJCC U20 Open 2019"]
[Site "New Delhi"]
[Date "2019.10.18"]
[Round "5.23"]
[White "Eugene, Floryan"]
[Black "Drygalov, Sergey"]
[Result "0-1"]
[ECO "B23"]
[WhiteElo "2346"]
[BlackElo "2470"]
[Annotator "ChessBase"]
[PlyCount "56"]
[EventDate "2019.10.15"]
[EventType "swiss"]
[EventCountry "IND"]
[SourceTitle "playchess.com"]
[Source "ChessBase"]
[SourceQuality "1"]
[TimeControl "40/5400+30:1800+30"]

1. e4 {[%emt 0:00:00]} c5 {[%emt 0:00:00]} 2. Nc3 {[%emt 0:00:06]} d6 {[%emt 0:02:33]} 3. d4 {[%emt 0:00:18]} cxd4 {[%emt 0:00:10]} 4. Qxd4 {[%emt 0:00:07]} Nc6 {[%emt 0:00:03]} 5. Qd2 {[%emt 0:00:08]} Nf6 {[%emt 0:00:09]} 6. b3 {[%emt 0:01:43]} e6 {[%emt 0:00:04]} 7. Bb2 {[%emt 0:00:08]} d5 {[%emt 0:00:05]} 8. exd5 {[%emt 0:00:24]} exd5 {[%emt 0:00:13]} 9. O-O-O {[%emt 0:00:31]} Be6 {[%emt 0:00:04]} 10. Kb1 {[%emt 0:00:55]} Qa5 {[%emt 0:05:45]} 11. Nb5 {[%emt 0:01:43]} Qxd2 {[%emt 0:00:58]} 12. Rxd2 {[%emt 0:00:07]} O-O-O {[%emt 0:00:43]} 13. f3 {[%emt 0:10:18]} Bc5 {[%emt 0:04:27]} 14. Ne2 {[%emt 0:07:41]} Rhe8 {[%emt 0:01:52]} 15. Ned4 {[%emt 0:08:31]} Bd7 {[%emt 0:03:57]} 16. Bd3 {[%emt 0:03:31]} Ne5 {[%emt 0:24:20]} 17. Nf5 {[%emt 0:03:21]} Nxd3 {[%emt 0:12:05]} 18. Nbd6+ Kc7 {[%emt 0:08:59]} 19. Bxf6 {[%emt 0:14:41]} gxf6 {[%emt 0:01:21]} 20. Nxe8+ {[%emt 0:00:27]} Rxe8 {[%emt 0:00:22]} 21. Ng7 {[%emt 0:01:12]} Re5 {[%emt 0:08:08]} 22. Rxd3 {[%emt 0:10:02]} Rg5 {[%emt 0:00:34]} 23. Re1 {[%emt 0:19:33]} Rxg7 {[%emt 0:00:59]} 24. Rxd5 {[%emt 0:00:03]} Kc6 {[%emt 0:01:40]} 25. Rh5 {[%emt 0:00:03]} Rxg2 {[%emt 0:02:48]} 26. Rxh7 {[%emt 0:00:12]} Bf5 {[%emt 0:01:13]} 27. Rh8 {[%emt 0:03:11]} Bxc2+ {[%emt 0:00:10]} 28. Kb2 {[%emt 0:00:07]} Bf5+ 0-1

[Event "WJCC U20 Open 2019"]
[Site "New Delhi"]
[Date "2019.10.18"]
[Round "5.24"]
[White "Vykouk, Jan"]
[Black "O`Donnell, Conor"]
[Result "1/2-1/2"]
[ECO "C42"]
[WhiteElo "2468"]
[BlackElo "2345"]
[Annotator "ChessBase"]
[PlyCount "71"]
[EventDate "2019.10.15"]
[EventType "swiss"]
[EventCountry "IND"]
[SourceTitle "playchess.com"]
[Source "ChessBase"]
[SourceQuality "1"]
[TimeControl "40/5400+30:1800+30"]

1. e4 {[%emt 0:00:00]} e5 {[%emt 0:00:00]} 2. Nf3 {[%emt 0:00:05]} Nf6 {[%emt 0:00:00]} 3. Nxe5 {[%emt 0:00:26]} d6 {[%emt 0:00:22]} 4. Nd3 {[%emt 0:01:06]} Nxe4 {[%emt 0:00:26]} 5. Qe2 {[%emt 0:00:04]} Qe7 {[%emt 0:00:09]} 6. Nf4 {[%emt 0:00:20]} Nc6 {[%emt 0:01:37]} 7. c3 {[%emt 0:03:16]} Nf6 {[%emt 0:00:51]} 8. Na3 {[%emt 0:01:16]} g5 {[%emt 0:04:54]} 9. Qxe7+ {[%emt 0:00:08]} Bxe7 {[%emt 0:01:54]} 10. Ne2 {[%emt 0:00:04]} Bd7 {[%emt 0:15:03]} 11. d4 {[%emt 0:00:09]} Rg8 {[%emt 0:01:48]} 12. Ng3 {[%emt 0:00:09]} O-O-O {[%emt 0:03:12]} 13. Bd3 {[%emt 0:00:07]} Rde8 {[%emt 0:03:34]} 14. O-O {[%emt 0:00:22]} h5 {[%emt 0:01:55]} 15. Nc4 {[%emt 0:03:57]} Bd8 {[%emt 0:06:45]} 16. Nf5 {[%emt 0:01:35]} d5 {[%emt 0:03:15]} 17. Nce3 {[%emt 0:00:45]} Ne7 {[%emt 0:03:21]} 18. Nh6 {[%emt 0:05:05]} Rg7 {[%emt 0:00:18]} 19. f3 {[%emt 0:00:28]} Be6 {[%emt 0:06:42]} 20. g4 {[%emt 0:11:50]} Rh8 {[%emt 0:05:40]} 21. Nhf5 {[%emt 0:01:00]} Nxf5 {[%emt 0:00:37]} 22. Nxf5 {[%emt 0:00:10]} Rgh7 {[%emt 0:11:40]} 23. Ng3 {[%emt 0:00:21]} Rg7 {[%emt 0:00:20]} 24. h3 {[%emt 0:01:23]} c6 {[%emt 0:01:13]} 25. Kg2 {[%emt 0:00:09]} Kd7 {[%emt 0:02:03]} 26. Bd2 {[%emt 0:00:48]} Bc7 {[%emt 0:04:16]} 27. Rae1 {[%emt 0:01:44]} Rgg8 {[%emt 0:03:17]} 28. Rf2 {[%emt 0:05:27]} hxg4 {[%emt 0:04:17]} 29. fxg4 {[%emt 0:04:06]} Bxg3 {[%emt 0:02:29]} 30. Kxg3 {[%emt 0:00:05]} Ne4+ {[%emt 0:04:00]} 31. Bxe4 {[%emt 0:00:09]} dxe4 {[%emt 0:00:01]} 32. Rxe4 {[%emt 0:02:17]} Rg6 {[%emt 0:00:40]} 33. Rh2 {[%emt 0:11:27]} Bxa2 {[%emt 0:02:21]} 34. Re5 {[%emt 0:00:05]} f6 {[%emt 0:00:30]} 35. Ra5 {[%emt 0:00:05]} Bc4 {[%emt 0:00:45]} 36. h4 {[%emt 0:05:52]} 1/2-1/2

[Event "WJCC U20 Open 2019"]
[Site "New Delhi"]
[Date "2019.10.18"]
[Round "5.26"]
[White "Aditya Mittal"]
[Black "Garidmagnai, Byambasuren"]
[Result "1-0"]
[ECO "E91"]
[WhiteElo "2430"]
[BlackElo "2327"]
[Annotator "NA RC"]
[PlyCount "83"]
[EventDate "2019.10.15"]
[EventType "swiss"]
[EventCountry "IND"]
[SourceTitle "playchess.com"]
[Source "ChessBase"]
[SourceQuality "1"]
[TimeControl "40/5400+30:1800+30"]

1. d4 Nf6 2. c4 g6 3. Nc3 Bg7 4. e4 d6 5. Nf3 O-O 6. Be2 Na6 7. O-O e5 8. Be3 Ng4 9. Bg5 Qe8 10. dxe5 dxe5 11. h3 h6 12. Bd2 Nf6 13. Be3 Qe7 14. a3 c6 15. Qc2 Nh5 16. Rfd1 Nf4 17. Bf1 Nc7 18. b4 Qf6 19. Bc5 Nxh3+ 20. gxh3 Qxf3 21. Bxf8 Bxf8 22. Ne2 a5 23. Bg2 Qf6 24. Qc3 Ne6 25. c5 h5 26. Rd3 h4 27. Rad1 Be7 28. Qd2 Kg7 29. Qb2 Nf4 30. Nxf4 Qxf4 31. b5 Bxc5 32. bxc6 bxc6 33. Qc2 Bb6 34. Rf3 Qg5 35. Qb3 Bc5 36. Qxf7+ Kh6 37. Qc7 Qe7 38. Qd8 Rb8 39. Qh8+ Kg5 40. Kh2 Bd6 41. Rg3+ hxg3+ 42. fxg3 1-0

[Event "WJCC U20 Open 2019"]
[Site "New Delhi"]
[Date "2019.10.18"]
[Round "5.27"]
[White "Sterck, Arno"]
[Black "Bharath Subramaniyam H"]
[Result "0-1"]
[ECO "A62"]
[WhiteElo "2331"]
[BlackElo "2417"]
[Annotator "NA"]
[PlyCount "66"]
[EventDate "2019.10.15"]
[EventType "swiss"]
[EventCountry "IND"]
[SourceTitle "playchess.com"]
[Source "ChessBase"]
[SourceQuality "1"]
[TimeControl "40/5400+30:1800+30"]

1. d4 {[%emt 0:00:00]} Nf6 {[%emt 0:00:00]} 2. c4 {[%emt 0:00:00]} e6 {[%emt 0:00:00]} 3. g3 {[%emt 0:00:00]} c5 {[%emt 0:05:42]} 4. d5 {[%emt 0:00:00]} exd5 {[%emt 0:00:09]} 5. cxd5 {[%emt 0:00:00]} d6 {[%emt 0:00:12]} 6. Nc3 {[%emt 0:00:07]} g6 {[%emt 0:00:25]} 7. Bg2 {[%emt 0:00:09]} Bg7 {[%emt 0:00:10]} 8. Nf3 {[%emt 0:00:08]} O-O {[%emt 0:00:08]} 9. O-O {[%emt 0:00:04]} a6 {[%emt 0:00:22]} 10. a4 {[%emt 0:00:03]} Nbd7 {[%emt 0:00:39]} 11. Bf4 {[%emt 0:00:34]} Qe7 {[%emt 0:00:11]} 12. Rb1 {[%emt 0:07:13]} Ng4 {[%emt 0:09:22]} 13. Bg5 {[%emt 0:00:14]} Qe8 {[%emt 0:02:20]} 14. h3 {[%emt 0:01:52]} h6 {[%emt 0:13:53]} 15. Bd2 {[%emt 0:00:11]} Nge5 {[%emt 0:00:16]} 16. b4 {[%emt 0:00:19]} Nc4 {[%emt 0:04:01]} 17. Qb3 {[%emt 0:07:05]} b5 {[%emt 0:15:04]} 18. Be1 {[%emt 0:13:28]} Rb8 {[%emt 0:07:19]} 19. axb5 {[%emt 0:01:49]} axb5 {[%emt 0:00:11]} 20. Nxb5 {[%emt 0:07:53]} Rxb5 {[%emt 0:01:37]} 21. Qxc4 {[%emt 0:00:16]} Nb6 {[%emt 0:00:15]} 22. Qf4 {[%emt 0:04:10]} Bf5 {[%emt 0:03:21]} 23. Rd1 {[%emt 0:01:42]} Qxe2 {[%emt 0:04:30]} 24. Rd2 {[%emt 0:00:21]} Qe4 {[%emt 0:04:04]} 25. Qxd6 {[%emt 0:02:35]} Nc4 {[%emt 0:00:44]} 26. Qa6 {[%emt 0:03:58]} Nxd2 {[%emt 0:01:07]} 27. Nxd2 {[%emt 0:00:06]} Qxb4 {[%emt 0:05:15]} 28. Ne4 {[%emt 0:03:35]} Qb3 {[%emt 0:01:34]} 29. Qd6 {[%emt 0:03:35]} c4 {[%emt 0:04:06]} 30. Qf4 {[%emt 0:04:05]} c3 {[%emt 0:03:33]} 31. Nd6 {[%emt 0:00:27]} Rb4 {[%emt 0:00:09]} 32. Qe3 {[%emt 0:01:07]} Bd7 {[%emt 0:01:35]} 33. Be4 {[%emt 0:01:47]} Bxh3 {[%emt 0:00:47]} 0-1

[Event "WJCC U20 Open 2019"]
[Site "New Delhi"]
[Date "2019.10.18"]
[Round "5.28"]
[White "Bronstein, Or"]
[Black "Wagh Suyog"]
[Result "1-0"]
[ECO "E06"]
[WhiteElo "2413"]
[BlackElo "2229"]
[Annotator "NA RC"]
[PlyCount "61"]
[EventDate "2019.10.15"]
[EventType "swiss"]
[EventCountry "IND"]
[SourceTitle "playchess.com"]
[Source "ChessBase"]
[SourceQuality "1"]
[TimeControl "40/5400+30:1800+30"]

1. d4 {[%emt 0:00:00]} Nf6 {[%emt 0:00:00]} 2. c4 {[%emt 0:00:00]} e6 {[%emt 0:00:00]} 3. Nf3 {[%emt 0:00:02]} d5 {[%emt 0:00:00]} 4. g3 {[%emt 0:00:05]} Be7 {[%emt 0:00:00]} 5. Bg2 {[%emt 0:00:12]} O-O {[%emt 0:00:00]} 6. Qc2 {[%emt 0:07:34]} c5 {[%emt 0:08:06]} 7. O-O {[%emt 0:01:01]} cxd4 8. Nxd4 {[%emt 0:02:05]} Nc6 {[%emt 0:10:55]} 9. Nxc6 {[%emt 0:00:10]} bxc6 {[%emt 0:00:02]} 10. b3 $11 {[%emt 0:03:46]} e5 {[%emt 0:06:05]} 11. Rd1 {[%emt 0:04:59]} Be6 {[%emt 0:01:16]} 12. Bb2 {[%emt 0:00:29]} Bd6 {[%emt 0:02:04]} 13. e3 {[%emt 0:03:02]} Rc8 {[%emt 0:18:48]} 14. Nc3 {[%emt 0:11:17]} Bb8 {[%emt 0:25:29]} 15. Rac1 {[%emt 0:15:32]} Qe7 {[%emt 0:01:43]} 16. cxd5 {[%emt 0:06:58]} cxd5 {[%emt 0:00:02]} 17. Qd3 {[%emt 0:02:56]} Rcd8 {[%emt 0:02:39]} 18. Qa6 {[%emt 0:04:03]} h5 {[%emt 0:02:55]} 19. Qa5 {[%emt 0:06:16]} h4 {[%emt 0:10:29]} 20. Nxd5 {[%emt 0:10:39]} Nxd5 {[%emt 0:00:38]} 21. Bxd5 {[%emt 0:00:02]} Bg4 {[%emt 0:00:07]} 22. Rd2 {[%emt 0:00:38]} e4 {[%emt 0:06:59]} 23. Rc6 {[%emt 0:09:51]} Kh7 {[%emt 0:01:18]} 24. Ba3 {[%emt 0:00:35]} Qe5 {[%emt 0:00:19]} 25. Rd4 {[%emt 0:02:05]} Rfe8 {[%emt 0:00:59]} 26. Rc5 {[%emt 0:03:47]} h3 {[%emt 0:01:36]} 27. Bxf7 {[%emt 0:01:31]} Rxd4 {[%emt 0:00:10]} 28. exd4 {[%emt 0:00:06]} Qf6 {[%emt 0:00:45]} 29. Rh5+ {[%emt 0:00:13]} Bxh5 {[%emt 0:00:27]} 30. Qxh5+ {[%emt 0:00:03]} Qh6 {[%emt 0:00:06]} 31. Qxh6+ {[%emt 0:00:46]} 1-0